[Event "Menorca Open-A 2022"]
[Site "Menorca"]
[Date "2022.04.20"]
[Round "1.7"]
[White "Martirosyan, Haik M."]
[Black "Gonzalvez Tamarit, Ruben"]
[Result "1-0"]
[ECO "A81"]
[WhiteElo "2633"]
[BlackElo "2076"]
[Annotator "TA"]
[PlyCount "69"]
[EventDate "2022.04.20"]
[EventType "swiss"]
[EventCountry "ESP"]
[SourceTitle "playchess.com"]
[Source "ChessBase"]
[SourceQuality "1"]
[TimeControl "5400+30"]

{[%evp 10,69,19,30,58,61,108,66,127,108,97,108,133,126,226,204,187,148,236,239,234,235,323,328,318,322,348,221,271,256,376,308,308,317,304,304,325,315,340,338,667,326,350,329,507,505,464,401,385,326,444,357,742,721,917,910,29986,29987,29987,29988,29988,29984]} 1. d4 {[%emt 0:00:08]} f5 {[%emt 0:00:10]} 2. g3 {[%emt 0:00:25]} Nf6 {[%emt 0:00:08]} 3. Bg2 {[%emt 0:00:08]} g6 {[%emt 0:00:17]} 4. Nd2 {[%emt 0:00:41]} Bg7 {[%emt 0:00:10]} 5. e4 {[%emt 0:00:39]} fxe4 {[%emt 0:00:30]} 6. Nxe4 {[%emt 0:00:08]} O-O {[%emt 0:02:11] A81: Dutch Defence: 2 g3.} 7. Nxf6+ {[%emt 0:03:57] [#]} Rxf6 $146 {[%emt 0:06:41]} (7... exf6 $14 {was preferrable.} 8. Ne2 d5) ({Predecessor:} 7... exf6 8. c4 d6 9. Ne2 Nc6 10. O-O f5 11. Be3 Kh8 12. Rc1 a6 13. Qd2 Re8 14. Rfe1 {1-0 (31) Shuvalova,P (2504)-Araujo Filho,L (2089) Chess.com INT 2022}) 8. Ne2 {[%emt 0:01:50]} (8. h4 {with more complications.} Nc6 9. c3 h6 10. g4) 8... h6 {[%emt 0:11:29]} (8... c6 $14) 9. Be3 {[%emt 0:03:44]} d6 {[%emt 0:05:32]} 10. Qd2 {[%emt 0:02:51]} Kh7 {[%emt 0:00:48]} 11. h4 {[%emt 0:00:40][%cal Bh2h4,Bh4h5][%mdl 32]} Nc6 {[%emt 0:01:46]} (11... h5 $16) 12. h5 $18 {[%emt 0:06:37]} g5 {[%emt 0:02:05]} 13. f4 {[%emt 0:01:16]} g4 {[%emt 0:02:10]} (13... gxf4 $16 14. Nxf4 e5 15. Be4+ Bf5) 14. d5 {[%emt 0:00:34]} Nb8 {[%emt 0:00:29]} 15. Bd4 {[%emt 0:00:49]} Rf7 {[%emt 0:05:06]} 16. Be4+ {[%emt 0:00:31]} Kg8 {[%emt 0:01:57]} 17. Bxg7 {[%emt 0:01:14]} ({Much less strong is} 17. Bg6 Rf8 18. O-O-O (18. Bxg7 Kxg7 19. O-O-O c5 $18) 18... c5 $18) 17... Rxg7 {[%emt 0:01:42]} 18. Nd4 {[%emt 0:01:44]} Qf8 {[%emt 0:04:14]} 19. O-O-O {[%emt 0:01:40]} Bd7 {[%emt 0:07:52]} (19... c5 {might work better.}) 20. Bg6 {[%emt 0:14:32] [#] Threatens to win with f5.} c5 {[%emt 0:16:26]} 21. Ne6 {[%emt 0:01:44]} Bxe6 {[%emt 0:00:23]} 22. dxe6 {[%emt 0:00:06] Black must now prevent f5.} Qf6 {[%emt 0:01:43]} 23. f5 {[%emt 0:00:25]} Nc6 {[%emt 0:01:11]} 24. Qxh6 {[%emt 0:00:22][%cal Od1d6] Rxd6! is the strong threat.} Ne5 $2 {[%emt 0:00:54] [#]} (24... Rf8 25. c3 b5) 25. Qf4 {[%emt 0:01:07]} (25. Rxd6 $142 $3 {[%mdl 512]} b6 (25... Rc8 26. Rd5) 26. Rd5) 25... c4 {[%emt 0:01:23]} 26. Rdf1 {[%emt 0:05:17] Strongly threatening h6.} Rc8 {[%emt 0:01:55]} (26... Kh8 $142 27. Rd1 Rf8 28. Qh6+ Kg8) 27. h6 {[%emt 0:00:49]} Rh7 {[%emt 0:09:31]} 28. Bxh7+ {[%emt 0:00:42]} Kxh7 {[%emt 0:00:05]} 29. Re1 {[%emt 0:02:12]} Rc5 {[%emt 0:01:26]} 30. Re3 {[%emt 0:04:44]} c3 $2 {[%emt 0:05:27]} (30... b6 31. Rh5 a5) 31. Rxc3 {[%emt 0:01:09]} Rxc3 {[%emt 0:00:05]} 32. bxc3 {[%emt 0:00:05]} Nd3+ {[%emt 0:00:03]} 33. cxd3 {[%emt 0:00:08] White mates.} Qxc3+ {[%emt 0:00:05]} 34. Kb1 {[%emt 0:00:21]} Qxd3+ {[%emt 0:03:08]} 35. Kb2 {[%emt 0:00:04] Black did not feel at home in the position after the opening.  Weighted Error Value: White=0.41/Black=0.79} 1-0

[Event "Menorca Open-A 2022"]
[Site "Menorca"]
[Date "2022.04.20"]
[Round "1.8"]
[White "Ribeiro, Bruno"]
[Black "Sadhwani, Raunak"]
[Result "0-1"]
[ECO "B06"]
[WhiteElo "2083"]
[BlackElo "2616"]
[Annotator "TA"]
[PlyCount "52"]
[EventDate "2022.04.20"]
[EventType "swiss"]
[EventCountry "ESP"]
[SourceTitle "playchess.com"]
[Source "ChessBase"]
[SourceQuality "1"]
[TimeControl "5400+30"]

{[%evp 11,52,28,39,36,45,0,12,-43,0,-80,-80,-105,-64,-115,-90,-91,-99,-102,-103,-185,-186,-170,-169,-179,-133,-195,-204,-200,-187,-231,-226,-614,-617,-600,-627,-618,-607,-738,-754,-1097,-1018,-765,-655]} 1. e4 {[%emt 0:00:24]} g6 {[%emt 0:00:07]} 2. d4 {[%emt 0:00:53]} d6 {[%emt 0:00:05]} 3. Nc3 {[%emt 0:00:38]} Bg7 {[%emt 0:00:14]} 4. Nf3 {[%emt 0:00:51]} a6 {[%emt 0:00:47]} 5. Be3 {[%emt 0:07:27]} b5 {[%emt 0:00:28]} 6. Bd3 {[%emt 0:18:06]} Bb7 $1 {[%emt 0:00:07] 6...Bb7 is better than 6...Nd7.} 7. O-O {[%emt 0:00:24] B06: Modern Defence.} Nd7 {[%emt 0:01:13]} 8. Ne2 {[%emt 0:05:42]} (8. a4 $5 {[%cal Ra4b5]}) 8... Ngf6 {[%emt 0:03:35] [#]} 9. Nd2 $146 {[%emt 0:05:15]} (9. Ng3 $1 $11) ({Predecessor:} 9. Ng3 O-O 10. c3 e5 11. Re1 d5 12. exd5 exd4 13. Bxd4 Bxd5 14. a4 c6 15. b4 {1-0 (35) Abdusattorov,N (2627)-Mekhitarian,K (2554) Chess.com INT 2020}) 9... e5 {[%emt 0:01:06]} (9... c5 $5 {[%cal Rc5c4]} 10. c3 Ng4 $11) 10. h3 {[%emt 0:17:56]} (10. a4 $11 {keeps the balance.}) 10... exd4 $17 {[%emt 0:05:42]} 11. Bxd4 {[%emt 0:00:17]} O-O {[%emt 0:02:16]} 12. f4 {[%emt 0:13:19]} ({White should play} 12. b3 $15) 12... Re8 {[%emt 0:00:44]} 13. a4 {[%emt 0:10:13]} b4 {[%emt 0:02:03]} (13... Nxe4 $6 14. Bxg7 Nxd2 15. Qxd2 $15) (13... Bxe4 $6 14. Nxe4 Nxe4 15. axb5 $11) 14. c3 {[%emt 0:01:23]} bxc3 {[%emt 0:01:01]} ({Much worse is} 14... Nxe4 $6 15. Bxg7 Kxg7 16. Nxe4 Bxe4 17. Bxe4 Rxe4 18. Ng3 $11) ({Much weaker is} 14... Bxe4 $6 15. Nxe4 Nxe4 16. Bxg7 Kxg7 17. Bxe4 Rxe4 18. Ng3 $15) 15. Bxf6 {[%emt 0:04:59]} (15. bxc3 $17 Nxe4 16. Nxe4 Bxe4 17. Bxe4 Rxe4 18. Bxg7 Kxg7 19. Ng3) 15... Qxf6 $19 {[%emt 0:00:28]} ({Stronger than} 15... Bxf6 16. Nxc3 Nc5 17. Qc2 $17) 16. bxc3 {[%emt 0:01:44]} Nc5 {[%emt 0:00:05][%csl LRd3,LRe4]} 17. Qc2 {[%emt 0:00:52]} Re7 {[%emt 0:00:44]} ({Black should try} 17... Qe7 $19 18. Nd4 Nxe4 19. Bxe4 Bxe4 20. Qxe4 Qxe4 21. Nxe4 Rxe4) 18. Nd4 {[%emt 0:01:21]} (18. Rab1 $17) 18... Nxd3 {[%emt 0:02:17]} 19. Qxd3 {[%emt 0:00:15]} c5 {[%emt 0:00:05]} 20. Ne2 {[%emt 0:02:19]} Rae8 {[%emt 0:00:23][%cal Rb7e4]} 21. Nc4 $2 {[%emt 0:03:02]} (21. Rf2) 21... Bxe4 {[%emt 0:00:37] Black is clearly winning.} 22. Qxd6 {[%emt 0:00:26]} Re6 {[%emt 0:00:30]} 23. Qxc5 {[%emt 0:01:04] [#]} Bxg2 $1 {[%emt 0:00:34][%mdl 512] A strong pair of Bishops.} 24. Nd4 {[%emt 0:00:37]} (24. Ne5 Bxf1) 24... Bxf1 {[%emt 0:00:10]} 25. Nxe6 {[%emt 0:00:23]} Qxe6 {[%emt 0:00:04]} 26. Rxf1 {[%emt 0:00:42]} Rc8 {[%emt 0:00:04] Weighted Error Value: White=0.86/Black=0.08 (flawless)} 0-1

[Event "Menorca Open-A 2022"]
[Site "Menorca"]
[Date "2022.04.21"]
[Round "2.1"]
[White "Alinasab, Mobina"]
[Black "Erigaisi Arjun"]
[Result "0-1"]
[ECO "C02"]
[WhiteElo "2325"]
[BlackElo "2633"]
[Annotator "TA"]
[PlyCount "72"]
[EventDate "2022.04.20"]
[EventType "swiss"]
[EventCountry "ESP"]
[SourceTitle "playchess.com"]
[Source "ChessBase"]
[SourceQuality "1"]
[TimeControl "5400+30"]

{[%evp 11,72,-12,-8,-27,-18,-29,-23,-29,-18,-25,-3,0,-18,-4,17,0,0,0,0,-9,0,-32,0,0,0,0,0,-10,0,-48,-47,-47,8,-22,-27,-15,74,-11,-8,-54,-31,-60,-58,-58,-32,-121,-134,-120,-129,-101,-81,-85,-78,-107,-114,-150,-153,-148,-149,-29981,-29982,-29990,-29991]} 1. e4 {[%emt 1:31:00]} e6 {[%emt 1:31:00]} 2. d4 {[%emt 0:00:30]} d5 {[%emt 0:00:30]} 3. e5 {[%emt 0:00:30]} c5 {[%emt 0:00:30][%cal Bc7c5,Bc5d4][%mdl 32]} 4. c3 {[%emt 0:00:30]} Qb6 {[%emt 0:00:30]} 5. Nf3 {[%emt 0:00:30]} Nc6 {[%emt 0:00:30]} 6. Bd3 {[%emt 0:00:30]} cxd4 {[%emt 0:00:30]} 7. O-O {[%emt 0:00:30] is now more promising than 7.cxd4. C02: French: Advance Variation.} Bd7 {[%emt 0:00:30]} 8. Re1 {[%emt 0:00:30]} Nge7 {[%emt 0:00:30]} 9. h4 {[%emt 0:00:30] Black has an edge.} a6 {[%emt 0:00:30]} 10. Nbd2 {[%emt 0:00:30]} dxc3 {[%emt 0:00:30]} 11. bxc3 {[%emt 0:00:30]} Qc7 {[%emt 0:00:30] [#]} 12. c4 $146 {[%emt 0:00:30]} ({Predecessor:} 12. Nb3 Ng6 13. Qe2 f6 14. exf6 gxf6 15. c4 O-O-O 16. cxd5 exd5 17. Be3 Nge5 18. Nxe5 fxe5 {1-0 (25) Kiolbasa,O (2399)-Zatonskih,A (2403) Warsaw 2021}) 12... Ng6 {[%emt 0:00:30][%cal Rg6e5]} 13. cxd5 {[%emt 0:00:30]} exd5 {[%emt 0:00:30]} 14. Ng5 {[%emt 0:00:30]} Be7 {[%emt 0:00:30]} 15. Ndf3 {[%emt 0:00:30]} Nf8 {[%emt 0:00:30]} (15... Ngxe5 $2 16. Nxe5 Nxe5 17. Bf4 $18) 16. Bf4 {[%emt 0:00:30][%cal Og5f7] Nxf7! is the strong threat.} Ne6 {[%emt 0:00:30]} (16... Be6 $5) 17. Nxe6 {[%emt 0:00:30]} Bxe6 {[%emt 0:00:30]} 18. Ng5 $1 {[%emt 0:00:30]} Bxg5 {[%emt 0:00:30]} 19. Bxg5 {[%emt 0:00:30]} h6 $36 {[%emt 0:00:30][%mdl 2048] Black fights for an advantage.} 20. Bf4 {[%emt 0:00:30]} (20. Bc1 $11 {is superior.}) 20... Qe7 $15 {[%emt 0:00:30]} 21. h5 {[%emt 0:00:30]} d4 {[%emt 0:00:30]} (21... Nb4 $15) 22. Be4 {[%emt 0:00:30]} Rd8 {[%emt 0:00:30]} 23. Rc1 {[%emt 0:00:30]} Qd7 {[%emt 0:00:30] [#]} (23... d3 $11 {remains equal.}) 24. Rc5 {[%emt 0:00:30]} ({Better is} 24. Qd3 $1 $16) 24... O-O $11 {[%emt 0:00:30]} ({Resist} 24... Bxa2 25. Qc2 Nb4 26. Qb2 $14) 25. Qf3 {[%emt 0:00:30]} (25. Qd2 $11 {should be considered.}) 25... Ne7 $15 {[%emt 0:00:30]} ({Much weaker is} 25... Bxa2 26. Bxh6 f5 27. Bxc6 bxc6 28. Qg3 $11) 26. Rec1 {[%emt 0:00:30] And now Rc7 would win.} Bd5 {[%emt 0:00:30][%cal Be6d5,Bd5e4,Be4f3][%mdl 32]} 27. Rc7 {[%emt 0:00:30]} Bxe4 {[%emt 0:00:30]} 28. Rxd7 {[%emt 0:00:30]} ({White should play} 28. Qxe4 $15 Qe6 29. Rxb7) 28... Bxf3 $17 {[%emt 0:00:30]} 29. Rxe7 {[%emt 0:00:30]} Bc6 {[%emt 0:00:30]} 30. Bd2 {[%emt 0:00:30]} Rfe8 {[%emt 0:00:30]} 31. Rxe8+ {[%emt 0:00:30]} Rxe8 {[%emt 0:00:30] KRB-KRB} 32. Rc5 {[%emt 0:00:30]} f6 {[%emt 0:00:30]} 33. Bf4 {[%emt 0:00:30] [#]} d3 $1 {[%emt 0:00:30][%cal Bd4d3,Bd3d2][%mdl 32]} 34. Kf1 {[%emt 0:00:30]} fxe5 {[%emt 0:00:30] &Nero is more active.} 35. Bxe5 {[%emt 0:00:30][%mdl 8192]} (35. Be3 $17) 35... d2 {[%emt 0:00:30][%cal Rd2d1]} 36. Ke2 {[%emt 0:00:30]} Rd8 {[%emt 0:00:30] Weighted Error Value: White=0.43/Black=0.13 (very precise)} 0-1

[Event "Menorca Open-A 2022"]
[Site "Menorca"]
[Date "2022.04.21"]
[Round "2.2"]
[White "Santos Latasa, Jaime"]
[Black "Pilaj, Herwig"]
[Result "1-0"]
[ECO "E90"]
[WhiteElo "2640"]
[BlackElo "2333"]
[Annotator "TA"]
[PlyCount "71"]
[EventDate "2022.04.20"]
[EventType "swiss"]
[EventCountry "ESP"]
[SourceTitle "playchess.com"]
[Source "ChessBase"]
[SourceQuality "1"]
[TimeControl "5400+30"]

{[%evp 18,71,42,41,66,68,77,78,89,93,93,64,72,68,67,72,72,56,94,89,95,96,104,68,91,91,131,127,254,193,193,193,193,193,193,193,193,193,241,241,484,496,487,462,401,401,546,539,514,392,376,284,509,470,477,456]} 1. d4 {[%emt 0:00:03]} Nf6 {[%emt 0:00:15]} 2. c4 {[%emt 0:00:05]} g6 {[%emt 0:00:21]} 3. Nc3 {[%emt 0:00:05]} Bg7 {[%emt 0:00:24]} 4. e4 {[%emt 0:00:05]} d6 {[%emt 0:00:04]} 5. h3 {[%emt 0:00:05]} O-O {[%emt 0:00:52]} 6. Be3 {[%emt 0:00:41]} c5 {[%emt 0:01:22]} 7. d5 {[%emt 0:00:38]} e6 {[%emt 0:00:19]} 8. Bd3 {[%emt 0:00:12]} exd5 {[%emt 0:03:10]} 9. exd5 {[%emt 0:00:48]} Re8 {[%emt 0:02:12]} 10. Nf3 {[%emt 0:00:30]} Rxe3+ {[%emt 0:02:32] E90: King's Indian: Classical: Early deviations and 6 h3.} 11. fxe3 {[%emt 0:00:22]} Nbd7 {[%emt 0:00:18]} 12. O-O {[%emt 0:00:09]} b6 {[%emt 0:01:18] White is better.} 13. Qd2 {[%emt 0:01:17]} Qe7 {[%emt 0:02:24]} 14. Rf2 {[%emt 0:02:12]} (14. e4 {feels hotter.} Ne5 15. Nxe5 Qxe5 16. Rf3) 14... Bb7 {[%emt 0:09:08]} 15. Raf1 {[%emt 0:07:46]} Rf8 {[%emt 0:06:00] [#]} 16. g4 $146 {[%emt 0:00:29]} ({Predecessor:} 16. e4 Ne5 17. Nxe5 Qxe5 18. Bc2 Ba6 19. Qd3 h5 20. Rf4 Nd7 21. Kh1 Qe7 22. Bb3 {0-1 (40) Martirosyan,H (2633)-Erigaisi,A (2633) Chess.com INT 2022}) 16... h6 {[%emt 0:04:06]} 17. Bc2 {[%emt 0:03:22]} Ba6 {[%emt 0:04:26] Black is on the road to losing.} 18. b3 {[%emt 0:06:13]} Ne5 {[%emt 0:04:41]} 19. Nxe5 {[%emt 0:00:10]} Qxe5 {[%emt 0:00:04]} 20. Ne2 {[%emt 0:00:05] Against Qg3+} Re8 {[%emt 0:11:10]} 21. Rf3 {[%emt 0:01:35]} Re7 {[%emt 0:11:17]} 22. Nf4 {[%emt 0:04:45][%cal Oc2g6] [#] Black must now prevent Bxg6!} Qb2 {[%emt 0:05:32]} (22... Ne4 $16 {was called for.} 23. Bxe4 Qxe4) 23. Qf2 {[%emt 0:03:22] And now Nd3 would win.} Ne4 {[%emt 0:07:49]} 24. Bxe4 {[%emt 0:00:09]} Qxf2+ {[%emt 0:00:03]} 25. Kxf2 {[%emt 0:00:18][%cal Bg1f2,Bf2e2,Be2d2][%mdl 32]} ({Don't take} 25. R3xf2 Rxe4 26. Nd3 Re7 $16) 25... Rxe4 {[%emt 0:00:05]} 26. a4 {[%emt 0:00:12] Prevents b5.} Bc8 {[%emt 0:00:50]} 27. Ke2 {[%emt 0:00:41]} a5 {[%emt 0:01:02]} (27... Re7 $142 28. Kd3 a6) 28. Kd2 {[%emt 0:01:23]} Bd7 $2 {[%emt 0:00:18]} (28... Re8 {might work better.} 29. Rg1 Re7) 29. Ne2 $18 {[%emt 0:00:34]} Re7 {[%emt 0:00:42] [#]} 30. Rf6 $1 {[%emt 0:01:44][%mdl 512]} Bxf6 {[%emt 0:03:01]} 31. Rxf6 {[%emt 0:00:09] KRB-KRN} Kg7 {[%emt 0:00:04]} 32. Rxd6 {[%emt 0:00:14]} f5 {[%emt 0:00:06]} 33. gxf5 {[%emt 0:00:47]} Bxf5 {[%emt 0:00:06]} 34. h4 {[%emt 0:00:21]} g5 $2 {[%emt 0:01:38]} (34... Rb7 35. Nc3 Bh3) 35. hxg5 {[%emt 0:00:33]} hxg5 {[%emt 0:00:05]} 36. Rxb6 {[%emt 0:00:20] Weighted Error Value: White=0.10 (very precise) /Black=0.42} 1-0

[Event "Menorca Open-A 2022"]
[Site "Menorca"]
[Date "2022.04.21"]
[Round "2.3"]
[White "Schenderowitsch, Michael"]
[Black "Nihal Sarin"]
[Result "0-1"]
[ECO "D24"]
[WhiteElo "2334"]
[BlackElo "2656"]
[Annotator "TA"]
[PlyCount "66"]
[EventDate "2022.04.20"]
[EventType "swiss"]
[EventCountry "ESP"]
[SourceTitle "playchess.com"]
[Source "ChessBase"]
[SourceQuality "1"]
[TimeControl "5400+30"]

{[%evp 10,66,12,0,0,0,13,0,12,6,16,13,2,-42,-36,-30,-33,-65,-69,-59,-44,-53,-60,-65,-57,-55,-62,-60,-52,-54,-65,-608,-591,-614,-597,-920,-904,-877,-902,-846,-862,-814,-860,-860,-814,-1482,-1434,-29984,-29985,-29989,-29990,-29995,-29996,-29996,-29997,-29997,-29998,-29998,-29999]} 1. d4 {[%emt 0:00:03]} Nf6 {[%emt 0:01:39]} 2. c4 {[%emt 0:00:09]} e6 {[%emt 0:00:04]} 3. Nf3 {[%emt 0:00:07]} d5 {[%emt 0:00:04]} 4. Nc3 {[%emt 0:00:12]} dxc4 {[%emt 0:00:05]} 5. e3 {[%emt 0:00:23]} a6 {[%emt 0:00:05]} 6. a4 {[%emt 0:00:14]} b6 {[%emt 0:00:05] D24: Queen's Gambit Accepted: 3 Nf3 Nf6 4 Nc3.} 7. Bxc4 {[%emt 0:00:20]} Bb7 {[%emt 0:00:05] Prevents e4.} 8. Qe2 {[%emt 0:01:35]} Bb4 {[%emt 0:00:21] The position is equal.} 9. O-O {[%emt 0:00:45]} O-O {[%emt 0:00:08]} 10. Ne5 {[%emt 0:03:36]} c5 {[%emt 0:13:39] [#]} 11. dxc5 $146 {[%emt 0:07:47]} ({Predecessor:} 11. Na2 Ba5 12. Rd1 Qc7 13. b3 Nc6 14. Bb2 Rfd8 15. Ng4 Nd5 16. dxc5 bxc5 17. h3 {½-½ (30) Cramling,P (2452)-Cheng,B (2550) Gibraltar 2022}) 11... Bxc5 {[%emt 0:03:57]} 12. b3 {[%emt 0:05:49]} Qc7 {[%emt 0:11:21]} 13. f4 {[%emt 0:10:12]} Nc6 {[%emt 0:01:25]} 14. Nd3 {[%emt 0:09:28]} Be7 {[%emt 0:12:07]} 15. Bb2 {[%emt 0:07:15]} Na5 {[%emt 0:00:08]} 16. Ne5 {[%emt 0:00:39]} Nxc4 {[%emt 0:00:02]} 17. Nxc4 {[%emt 0:02:49]} Rfd8 {[%emt 0:12:19]} 18. Rac1 {[%emt 0:01:39][%cal Oa4a5]} Bc5 {[%emt 0:06:57]} 19. Ne5 {[%emt 0:03:33][%cal Ob3b4]} Qe7 {[%emt 0:02:02]} 20. Nd3 $2 {[%emt 0:11:00][%mdl 8192] [#] White does not recover from this.} (20. h3 $15) 20... Rxd3 $1 $19 {[%emt 0:01:56][%mdl 512]} 21. Qxd3 {[%emt 0:00:21] [#]} Ng4 $1 {[%emt 0:00:01] ( -> ...Qh4)} 22. Ne4 {[%emt 0:19:15][%cal Oc1c5]} Bxe3+ {[%emt 0:00:41] A strong pair of Bishops.} 23. Kh1 {[%emt 0:01:32]} Qh4 {[%emt 0:05:26][%csl Gg4][%cal Rh4h2]} 24. h3 {[%emt 0:01:04]} Rd8 {[%emt 0:02:14][%cal Ba8d8,Bd8d3,Bd3g3][%mdl 32]} 25. Bf6 {[%emt 0:08:56] [#]} Qxh3+ $3 {[%emt 0:00:10][%mdl 512]} 26. gxh3 {[%emt 0:00:16]} Rxd3 {[%emt 0:00:01]} 27. Rc4 {[%emt 0:02:43]} Nxf6 {[%emt 0:00:16]} 28. Kh2 {[%emt 0:01:11]} Nxe4 {[%emt 0:00:07] Black mates.} 29. Rc2 {[%emt 0:00:33]} Nd2 {[%emt 0:00:29][%cal Rd2f1]} 30. Rfc1 {[%emt 0:00:55]} Bxf4+ {[%emt 0:00:06]} 31. Kg1 {[%emt 0:00:15]} Rg3+ {[%emt 0:00:05]} 32. Kf2 {[%emt 0:00:25]} Rg2+ {[%emt 0:00:05]} 33. Ke1 {[%emt 0:00:24]} Bg3+ {[%emt 0:00:04] Weighted Error Value: White=0.90/Black=0.02 (flawless)} 0-1

[Event "Menorca Open-A 2022"]
[Site "Menorca"]
[Date "2022.04.21"]
[Round "2.4"]
[White "Sargsyan, Shant"]
[Black "Rahal, Michael A"]
[Result "1-0"]
[ECO "A81"]
[WhiteElo "2639"]
[BlackElo "2326"]
[Annotator "TA"]
[PlyCount "83"]
[EventDate "2022.04.20"]
[EventType "swiss"]
[EventCountry "ESP"]
[SourceTitle "playchess.com"]
[Source "ChessBase"]
[SourceQuality "1"]
[TimeControl "5400+30"]

{[%evp 9,83,23,25,17,23,30,43,46,48,24,89,84,117,82,108,105,118,81,94,64,60,65,65,64,61,63,65,54,68,65,69,66,62,68,70,69,70,70,68,68,68,65,65,45,113,110,200,163,292,288,286,282,266,214,216,228,223,216,215,212,218,205,339,330,332,324,330,320,380,386,390,390,380,372,351,345]} 1. d4 {[%emt 0:01:46]} e6 {[%emt 0:00:43]} 2. Nf3 {[%emt 0:00:09]} f5 {[%emt 0:00:27]} 3. g3 {[%emt 0:00:23]} Nf6 {[%emt 0:00:06]} 4. Bg2 {[%emt 0:00:11]} d5 {[%emt 0:00:33]} 5. Bf4 {[%emt 0:00:19]} Bd6 {[%emt 0:01:33]} 6. e3 {[%emt 0:00:12][%cal Oc2c4] A81: Dutch Defence: 2 g3.} O-O {[%emt 0:01:10]} 7. c4 {[%emt 0:00:50] [#]} b6 $146 {[%emt 0:03:27]} ({Predecessor:} 7... Bd7 8. Qc2 Bxf4 9. exf4 Bc6 10. c5 Nbd7 11. O-O a5 12. a3 a4 13. Re1 Ne4 {1-0 (42) Lysyj,I (2631)-Ulybin,M (2496) Cheliabinsk 2018}) 8. cxd5 {[%emt 0:02:20] White is slightly better.} Nxd5 {[%emt 0:02:04]} 9. Nc3 {[%emt 0:02:45]} Bxf4 {[%emt 0:09:01]} (9... Nxc3 $11 {remains equal.} 10. bxc3 Bb7) 10. exf4 $16 {[%emt 0:01:54]} Ba6 {[%emt 0:02:03]} 11. Ne5 {[%emt 0:05:12]} c6 {[%emt 0:02:51]} 12. Rc1 {[%emt 0:02:11]} Qd6 {[%emt 0:01:31]} 13. Qb3 {[%emt 0:05:43]} Ne7 {[%emt 0:05:59]} 14. Ne2 {[%emt 0:04:13] 0x0.001c68f4b568dp-1022s more active pieces. The black rooks are badly placed.} Rc8 {[%emt 0:05:59]} 15. Nc4 {[%emt 0:04:47]} Bxc4 {[%emt 0:03:37]} 16. Qxc4 {[%emt 0:00:05]} Nd7 {[%emt 0:00:39]} 17. O-O {[%emt 0:00:08]} Rd8 {[%emt 0:05:51]} 18. Rfe1 {[%emt 0:03:19]} (18. Bxc6 $2 Rac8 19. d5 exd5 20. Bxd5+ Qxd5 $19) 18... Nf8 {[%emt 0:02:16]} 19. Rc2 {[%emt 0:04:39]} (19. Bxc6 $2 Rac8 20. d5 exd5 21. Bxd5+ Qxd5 $19) 19... Rac8 {[%emt 0:01:03]} 20. Qa6 {[%emt 0:00:46]} Rc7 {[%emt 0:02:35]} 21. Rec1 {[%emt 0:00:35]} Rdc8 {[%emt 0:01:11]} 22. a3 {[%emt 0:01:14]} Nd7 {[%emt 0:02:17]} 23. Nc3 {[%emt 0:01:52]} h6 {[%emt 0:05:13]} 24. Qe2 {[%emt 0:02:18]} Nf8 {[%emt 0:02:47]} 25. h4 {[%emt 0:01:11]} Qd7 {[%emt 0:05:22]} 26. h5 {[%emt 0:03:06]} Nd5 {[%emt 0:02:22] White now steadily converts the win.} (26... Qd8 $14) 27. Qe5 $1 {[%emt 0:02:06]} Nxc3 {[%emt 0:11:07]} (27... Nf6 $16) 28. Rxc3 $18 {[%emt 0:00:41]} ({Weaker is} 28. bxc3 Qf7 $14) 28... Kh7 {[%emt 0:02:28] [#]} (28... Kh8 {might work better.} 29. b4 a6) 29. d5 $1 {[%emt 0:06:18]} exd5 {[%emt 0:03:13] [#]} 30. Bh3 $1 {[%emt 0:00:09]} ({Wrong is} 30. Bxd5 $2 Re8 31. Qd4 Rcc8 32. Rxc6 Rxc6 33. Rxc6 Rd8 $19) 30... g6 {[%emt 0:01:26]} 31. Qf6 {[%emt 0:00:18] Black must now prevent hxg6+.} Qg7 {[%emt 0:09:42]} 32. hxg6+ {[%emt 0:00:22]} Nxg6 {[%emt 0:00:19]} 33. Qxg7+ {[%emt 0:02:43]} ({But not} 33. Qxf5 $6 Rf8 34. Qb1 Rf6 $16) 33... Kxg7 {[%emt 0:00:03]} 34. Bxf5 {[%emt 0:00:07]} d4 {[%emt 0:00:13]} 35. Rc4 {[%emt 0:00:10]} Rd8 {[%emt 0:01:28]} (35... Rf8 {is a better defense.}) 36. Rxc6 {[%emt 0:01:02]} Rxc6 {[%emt 0:00:06]} 37. Rxc6 {[%emt 0:00:03] KRB-KRN} Ne7 {[%emt 0:00:14]} 38. Rc7 {[%emt 0:00:03][%csl LRa7,LRe7]} Kf6 {[%emt 0:00:16]} 39. Bd3 {[%emt 0:00:09] White is winning.} a5 {[%emt 0:00:23]} 40. Kg2 {[%emt 0:00:51]} Rd6 {[%emt 0:00:05]} 41. Kf3 {[%emt 0:01:01]} h5 {[%emt 0:01:37]} 42. Rb7 {[%emt 0:01:55] Weighted Error Value: White=0.06 (flawless) /Black=0.20 (precise)} 1-0